[Event "Satranc Arena IM Series-1 2024"]
[Site "Izmir"]
[Date "2024.03.20"]
[Round "6.4"]
[White "Kuru, Atilla"]
[Black "Kazimova, Narmin"]
[Result "1-0"]
[ECO "C29"]
[WhiteElo "2246"]
[BlackElo "2147"]
[Annotator "TA"]
[PlyCount "53"]
[EventDate "2024.03.18"]
[EventCountry "TUR"]
[SourceTitle "playchess.com"]
[Source "ChessBase"]
[SourceQuality "1"]
[TimeControl "5400+30"]

{[%evp 9,53,-13,0,-1,0,0,0,-34,0,-20,-29,-28,0,-18,-8,0,53,53,65,55,54,69,80,46,53,43,46,57,115,112,85,86,347,365,495,381,410,379,788,845,855,841,819,587,684,671]} 1. e4 {[%emt 0:00:01]} e5 {[%emt 0:00:10]} 2. Nc3 {[%emt 0:00:05]} Nf6 {[%emt 0:00:39]} 3. f4 {[%emt 0:00:05]} d5 {[%emt 0:00:44]} 4. fxe5 {[%emt 0:00:05]} Nxe4 {[%emt 0:00:04]} 5. Qf3 {[%emt 0:00:03]} Nxc3 {[%emt 0:05:39]} 6. dxc3 {[%emt 0:00:10]} Be6 {[%emt 0:02:40]} 7. Bf4 {[%emt 0:00:17]} Nd7 {[%emt 0:06:31]} 8. Qg3 {[%emt 0:00:33] Inhibits g5. The position is equal.} h5 {[%emt 0:08:11]} 9. h4 {[%emt 0:00:52]} Nc5 {[%emt 0:00:43] White must now prevent ...Ne4.} 10. Bd3 {[%emt 0:01:01]} Qd7 {[%emt 0:06:01]} 11. Nf3 {[%emt 0:02:18]} Nxd3+ {[%emt 0:08:53]} 12. cxd3 {[%emt 0:01:21]} c5 {[%emt 0:00:02]} (12... Qb5 $11) 13. O-O $14 {[%emt 0:00:28]} g6 {[%emt 0:10:46] Black is weak on the dark squares} 14. Bg5 {[%emt 0:07:48]} Bg7 {[%emt 0:00:13]} 15. Bf6 {[%emt 0:00:08]} O-O {[%emt 0:04:43]} 16. Qg5 {[%emt 0:00:09] Prevents Bh6. White is more active.} Bf5 {[%emt 0:03:41]} 17. d4 {[%emt 0:00:15]} b6 {[%emt 0:01:37]} 18. Rf2 {[%emt 0:03:38]} Qe6 {[%emt 0:03:05]} (18... Rae8 $14) 19. Raf1 {[%emt 0:00:34]} Bd3 {[%emt 0:00:50]} 20. Re1 $40 {[%emt 0:01:54][%mdl 128] White has strong attack.} c4 $2 {[%emt 0:05:02][%mdl 8192] Black cannot hold the game after this.} (20... Rac8 $16) 21. Nh2 $18 {[%emt 0:02:46]} (21. Bxg7 Kxg7 22. g3 Rae8 $14) 21... Rae8 {[%emt 0:14:00]} 22. Re3 {[%emt 0:00:26] [#] aiming for g4.} Qd7 {[%emt 0:01:14]} 23. g4 {[%emt 0:01:12][%cal Bg2g4,Bg4h5][%mdl 32]} Qa4 $2 {[%emt 0:02:35]} (23... Bxf6 24. Rxf6 hxg4 25. Nxg4 Qd8) 24. Re1 {[%emt 0:02:04] White is clearly winning.} Bxf6 {[%emt 0:05:01]} 25. Rxf6 {[%emt 0:00:21]} Be4 {[%emt 0:04:21]} 26. Rf2 {[%emt 0:02:04]} Qd7 {[%emt 0:04:40]} 27. gxh5 {[%emt 0:00:11] Weighted Error Value: White=0.26 (precise) /Black=0.49.  Loses game:     	---       	Black=1      Mistake:       	---       	Black=3      Inaccurate:     	White=2     	Black=2      OK:         	White=6     	Black=5      Best:        	White=3     	Black=1} 1-0

[Event "Satranc Arena IM Series-1 2024"]
[Site "Izmir"]
[Date "2024.03.20"]
[Round "6.5"]
[White "Yalcinkaya, Efe"]
[Black "Gunduz, Umut Erdem"]
[Result "0-1"]
[ECO "C70"]
[WhiteElo "2085"]
[BlackElo "2314"]
[Annotator "TA"]
[PlyCount "115"]
[EventDate "2024.03.18"]
[EventCountry "TUR"]
[SourceTitle "playchess.com"]
[Source "ChessBase"]
[SourceQuality "1"]
[TimeControl "5400+30"]

{[%evp 10,115,52,57,50,64,87,75,77,83,86,49,123,92,79,91,206,49,63,-19,600,108,435,93,330,313,266,116,432,213,436,262,644,146,186,182,180,167,194,57,39,36,93,70,201,139,197,172,225,81,80,69,83,99,95,37,45,45,267,265,505,497,532,505,29986,29987,29987,29988,29988,197,197,197,197,197,197,197,197,197,237,279,290,184,379,379,374,316,293,233,233,201,201,0,201,201,201,201,213,78,187,187,187,57,64,65,65,65,65,-29991]} 1. e4 {[%emt 1:06:44]} e5 {[%emt 1:03:17]} 2. Nf3 {[%emt 0:00:30]} Nc6 {[%emt 0:00:30]} 3. Bb5 {[%emt 0:00:30][%cal Bf1b5,Bb5a4,Ba4b3][%mdl 32]} Nge7 {[%emt 0:00:30]} 4. c3 {[%emt 0:00:30]} a6 {[%emt 0:00:30]} 5. Ba4 {[%emt 0:00:30]} b5 {[%emt 0:00:30]} 6. Bb3 {[%emt 0:00:30]} Ng6 {[%emt 0:00:30]} 7. d4 {[%emt 0:00:30] Droht stark Ng5.} exd4 {[%emt 0:00:30]} 8. cxd4 {[%emt 0:00:30] Zielt auf Ng5 ab.} Bb4+ {[%emt 0:00:30] Weiß steht besser.} 9. Nc3 {[%emt 0:00:30]} O-O {[%emt 0:00:30]} 10. h4 {[%emt 0:00:30]} Na5 {[%emt 0:00:30]} ({Günstiger ist} 10... h6 $14) 11. Bc2 {[%emt 0:00:30]} d5 {[%emt 0:00:30]} 12. e5 {[%emt 0:00:30]} Re8 {[%emt 0:00:30]} (12... Ne7 $16) 13. h5 $2 {[%emt 0:00:30]} (13. Ng5 $1 $18 {Und jetzt Qh5 wäre schön.} Nf8 14. Qh5) 13... Nf8 $14 {[%emt 0:00:30]} 14. a3 {[%emt 0:00:30] [#]} (14. Kf1 $14) 14... Bd7 $2 {[%emt 0:00:30][%mdl 8192]} 15. Qd3 $2 {[%emt 0:00:30]} (15. axb4 $18 Nc4 16. h6 (16. Nxd5 c6 $18)) 15... Be6 $2 {[%emt 0:00:30][%mdl 8192]} 16. O-O $2 {[%emt 0:00:30]} (16. axb4 $18 Nc6 17. h6 Nxb4 18. Qd2 Nxc2+ 19. Qxc2) 16... Bg4 $2 {[%emt 0:00:30]} 17. Nh2 {[%emt 0:00:30]} (17. axb4 Nc6 18. Ne1 (18. Bg5 Qd7 $18) 18... Nxb4 $18) 17... Bxh5 {[%emt 0:00:30]} 18. f4 {[%emt 0:00:30]} (18. axb4 $18 {ist der präzise Gewinnweg.} Nc6 19. Bb3) 18... f6 $2 {[%emt 0:00:30][%mdl 8192]} 19. Qh3 {[%emt 0:00:30]} (19. axb4 $142 Nc6 20. Bb1) 19... Bf7 $2 {[%emt 0:00:30]} (19... Bxc3 {kämpft weiter.} 20. bxc3 (20. Qxc3 c5 $16) 20... Be2) 20. f5 {[%emt 0:00:30]} fxe5 $2 {[%emt 0:00:30]} (20... Bxc3 21. Qxc3 c5) 21. dxe5 $2 {[%emt 0:00:30]} (21. axb4 $18 {ist viel giftiger.} exd4 22. f6 (22. Rxa5 dxc3 23. f6 gxf6 $18) 22... dxc3 23. fxg7 (23. Rxa5 gxf6 24. Ng4 Be6 $18) (23. bxa5 gxf6 24. Ng4 Be6 $18) (23. bxc3 gxf6 24. Rxa5 Be6 $18)) 21... Bc5+ $16 {[%emt 0:00:30]} 22. Kh1 $1 {[%emt 0:00:30]} (22. Be3 Bxe3+ 23. Qxe3 d4 $17 (23... Nc4 24. Qg3 $17)) 22... Rxe5 {[%emt 0:00:30]} 23. Ng4 {[%emt 0:00:30]} Nc6 {[%emt 0:00:30][%cal Oh7h5]} 24. Nxe5 {[%emt 0:00:30]} (24. Bf4 $1 $18 {[%cal Rf4e5]} Bd4 25. Qg3) 24... Nxe5 $14 {[%emt 0:00:30]} 25. f6 {[%emt 0:00:30]} g6 {[%emt 0:00:30]} ({Besser ist} 25... gxf6 $14 26. Bh6 Nfg6) 26. Bf4 $1 $16 {[%emt 0:00:30][%mdl 1024] Weiss hat starke Kompensation.} Nc6 {[%emt 0:00:30]} (26... Qxf6 $2 27. Rae1 Ned7 28. Bxc7 $18) ({Vorzuziehen ist} 26... Nc4 $14) 27. Rae1 {[%emt 0:00:30]} Nd4 {[%emt 0:00:30] Gegen Bb3 gerichtet.} (27... Qd7 $16) 28. Bb1 {[%emt 0:00:30]} Nde6 {[%emt 0:00:30]} (28... Qd7 $142 29. Qh4 Nde6) 29. Be5 {[%emt 0:00:30]} (29. Bh6 $1 $18) 29... c6 {[%emt 0:00:30]} 30. Qh4 {[%emt 0:00:30]} Ra7 {[%emt 0:00:30]} 31. Ne2 {[%emt 0:00:30]} Be3 {[%emt 0:00:30]} 32. Nf4 {[%emt 0:00:30]} (32. b4 $16) 32... Bxf4 $14 {[%emt 0:00:30]} 33. Bxf4 {[%emt 0:00:30] Und Rf3 würde nun gewinnen.} Nxf4 $2 {[%emt 0:00:30]} (33... c5 $1 $14) 34. Rxf4 $18 {[%emt 0:00:30]} (34. Qxf4 c5 $14) 34... Rd7 $2 {[%emt 0:00:30]} (34... Qb8 {war nötig.} 35. Re7 Ne6) 35. Re7 {[%emt 0:00:30] Droht Matt per Qh6.} Ne6 {[%emt 0:00:30]} 36. Rf3 {[%emt 0:00:30][%cal Ob1g6] Droht Bxg6! und aus.} c5 {[%emt 0:00:30] [#]} (36... Rxe7 $18 37. fxe7 Qe8) 37. Bxg6 $1 {[%emt 0:00:30][%mdl 512]} Bxg6 {[%emt 0:00:30]} 38. f7+ {[%emt 0:00:30]} Kf8 {[%emt 0:00:30][%cal Bg8f8,Bf8e8,Be8d7][%mdl 32]} 39. Re8+ $2 {[%emt 0:00:30]} (39. Qf6 $1 {setzt Matt} d4 40. Re8+ (40. Rxe6 Qxf6 41. Rfxf6 Bxf7 $11) 40... Qxe8 41. fxe8=B+ (41. fxe8=Q+ Kxe8 42. Qxe6+ Kd8 43. Rf8+ Kc7 44. Qe5+ Kb7 45. Rb8+ Kc6 46. Rc8+ Rc7) 41... Kxe8 42. Qxe6+ Kd8 43. Rf8+ (43. Qxa6 Rf7 $18) 43... Kc7 44. Qe5+ (44. Qxa6 Rd6 $18) 44... Kb6 45. Rf6+ Kb7 46. Qxc5) 39... Qxe8 {[%emt 0:00:30]} 40. fxe8=Q+ {[%emt 0:00:30]} Kxe8 {[%emt 0:00:30]} 41. Re3 {[%emt 0:00:30]} Rd6 {[%emt 0:00:30]} 42. Qf6 {[%emt 0:00:30]} Kd7 {[%emt 0:00:30]} 43. Qf3 {[%emt 0:00:30]} c4 {[%emt 0:00:30]} 44. Re5 {[%emt 0:00:30]} Nc7 {[%emt 0:00:30]} 45. Qf8 {[%emt 0:00:30]} Re6 {[%emt 0:00:30]} (45... Ne6 46. Qb8 Nc7) 46. Rxe6 {[%emt 0:00:30]} Nxe6 {[%emt 0:00:30]} 47. Qa8 {[%emt 0:00:30]} Nc7 {[%emt 0:00:30]} 48. Qb7 {[%emt 0:00:30]} d4 {[%emt 0:00:30]} 49. Kg1 {[%emt 0:00:30]} c3 {[%emt 0:00:30]} 50. Qb6 $2 {[%emt 0:00:30]} (50. Qa7 $1 $18 {[%cal Ra7d4]} Kc6 51. Qxd4) 50... c2 $2 {[%emt 0:00:30]} (50... Ne6 $1 $11 51. Qb7+ (51. Qxa6 c2 $11) 51... Kd6 52. Qxa6+ Ke7 53. Qb7+ (53. Qxb5 c2 $11) 53... Kd6 54. Qb6+ (54. Qxb5 c2 $11) 54... Ke7 55. bxc3 (55. Qxb5 c2 $11) 55... dxc3) 51. Qxd4+ {[%emt 0:00:30]} Kc6 {[%emt 0:00:30]} 52. Qc3+ $1 {[%emt 0:00:30]} Kb6 {[%emt 0:00:30]} 53. b4 {[%emt 0:00:30]} (53. Kf2 $18) 53... Kb7 {[%emt 0:00:30] [#]} (53... Ne8 $16 {war einen Versuch wert.}) 54. Kf2 $1 {[%emt 0:00:30] Ke2 ist eine echte Drohung.} (54. Qf3+ $6 Kb6 55. Qc3 Kb7 $16) 54... Nd5 {[%emt 0:00:30]} 55. Qc5 {[%emt 0:00:30]} (55. Qg7+ $18 Kc6 56. Qa1) 55... Nb6 $1 $14 {[%emt 0:00:30] Weiß steht etwas besser.} 56. Qe7+ {[%emt 0:00:30]} Kc6 {[%emt 0:00:30]} 57. Qe6+ {[%emt 0:00:30]} ({Auf keinen Fall} 57. Qc5+ $6 Kb7 58. Qe7+ Kb8 $16) 57... Kb7 {[%emt 0:00:30] [#]} 58. Qe4+ $2 {[%emt 0:00:30][%mdl 8192] Gewichteter Fehlerwert: Weiß=0.66/Schwarz=0.86.  Verlustzug:     	Weiß=1     	Schwarz=6     Gewinn verpasst:   	Weiß=3     	---        Fehler:       	Weiß=9     	Schwarz=12    Ungenau:       	Weiß=4     	---        OK:         	Weiß=11    	Schwarz=12    Bester:       	Weiß=2     	Schwarz=4     Stark:        	Weiß=3     	Schwarz=1     Brilliant:      	Weiß=1     	---} 0-1

[Event "Satranc Arena IM Series-1 2024"]
[Site "Izmir"]
[Date "2024.03.21"]
[Round "7.1"]
[White "Gunduz, Umut Erdem"]
[Black "Aydin, Gulenay"]
[Result "1-0"]
[ECO "C41"]
[WhiteElo "2314"]
[BlackElo "2152"]
[Annotator "RC"]
[PlyCount "93"]
[EventDate "2024.03.18"]
[EventCountry "TUR"]
[SourceTitle "playchess.com"]
[Source "ChessBase"]
[SourceQuality "1"]
[TimeControl "5400+30"]

1. e4 {[%emt 0:00:23]} d6 {[%emt 0:00:05]} 2. d4 {[%emt 0:00:09]} Nf6 {[%emt 0:00:05]} 3. Nc3 {[%emt 0:00:03]} e5 {[%emt 0:00:05]} 4. Nf3 {[%emt 0:00:28]} Nbd7 {[%emt 0:00:06]} 5. Bc4 {[%emt 0:01:56]} Be7 {[%emt 0:00:07]} 6. O-O {[%emt 0:00:05]} O-O {[%emt 0:00:04]} 7. h3 {[%emt 0:02:26]} c6 {[%emt 0:00:19]} 8. a4 {[%emt 0:00:02]} h6 {[%emt 0:00:07]} 9. Be3 {[%emt 0:01:33]} Re8 {[%emt 0:02:13]} 10. Re1 {[%emt 0:03:43]} exd4 {[%emt 0:00:40]} 11. Bxd4 {[%emt 0:03:24]} Nf8 {[%emt 0:02:05]} 12. Qd3 {[%emt 0:04:17]} Be6 {[%emt 0:03:56]} 13. Rad1 {[%emt 0:01:17]} Qa5 {[%emt 0:05:04]} 14. Nd2 {[%emt 0:01:32]} Red8 {[%emt 0:09:03]} 15. Qg3 {[%emt 0:03:49]} Qb4 {[%emt 0:04:13]} 16. Bxe6 {[%emt 0:17:58]} Nxe6 {[%emt 0:00:45]} 17. Nb3 {[%emt 0:00:11]} Nxd4 {[%emt 0:03:31]} 18. Nxd4 {[%emt 0:00:56]} Bf8 {[%emt 0:01:56]} 19. Nf5 {[%emt 0:01:34]} Kh8 {[%emt 0:03:07]} 20. Rd4 {[%emt 0:02:44]} Qxb2 {[%emt 0:05:01]} 21. Rb1 {[%emt 0:00:55]} Qa3 {[%emt 0:20:40]} 22. Rxb7 {[%emt 0:00:17]} g6 {[%emt 0:00:52]} 23. Rxf7 {[%emt 0:02:56]} gxf5 {[%emt 0:03:11]} 24. Rxf6 {[%emt 0:04:01]} Bg7 {[%emt 0:02:20]} 25. Rg6 {[%emt 0:02:12]} f4 {[%emt 0:03:08]} 26. Qd3 {[%emt 0:00:16]} Qc5 {[%emt 0:10:19]} 27. Rc4 {[%emt 0:03:02]} Qe5 {[%emt 0:02:10]} 28. Rxc6 {[%emt 0:00:38]} Kh7 {[%emt 0:01:53]} 29. Rg4 {[%emt 0:02:40]} h5 {[%emt 0:01:43]} 30. Rxg7+ {[%emt 0:00:05]} Kxg7 {[%emt 0:00:16]} 31. Rc7+ {[%emt 0:00:05]} Kh6 {[%emt 0:00:27]} 32. Nd5 {[%emt 0:00:09]} Re8 {[%emt 0:01:38]} 33. Qb5 {[%emt 0:04:34]} Rg8 {[%emt 0:07:22]} 34. Ne7 {[%emt 0:01:41]} Rg5 {[%emt 0:05:36]} 35. Nf5+ {[%emt 0:00:29]} Rxf5 {[%emt 0:00:11]} 36. exf5 {[%emt 0:00:10]} Qxb5 {[%emt 0:02:19]} 37. axb5 {[%emt 0:00:32]} Rb8 {[%emt 0:00:04]} 38. c4 {[%emt 0:00:00]} d5 {[%emt 0:01:02]} 39. cxd5 {[%emt 0:00:02]} Rxb5 {[%emt 0:00:04]} 40. d6 {[%emt 0:00:04]} Rb1+ {[%emt 0:01:31]} 41. Kh2 {[%emt 0:00:02]} Kg5 {[%emt 0:00:20]} 42. Rxa7 {[%emt 0:02:01]} Rd1 {[%emt 0:00:10]} 43. Rd7 {[%emt 0:01:07]} Kxf5 {[%emt 0:00:46]} 44. Rf7+ {[%emt 0:00:08]} Kg5 {[%emt 0:01:19]} 45. d7 {[%emt 0:00:12]} Rd2 {[%emt 0:00:34]} 46. h4+ {[%emt 0:01:11]} Kxh4 {[%emt 0:00:05]} 47. Rg7 {[%emt 0:00:11]} 1-0

[Event "Satranc Arena IM Series-1 2024"]
[Site "Izmir"]
[Date "2024.03.21"]
[Round "7.3"]
[White "Gur, Ali"]
[Black "Kuru, Atilla"]
[Result "1-0"]
[ECO "C00"]
[WhiteElo "1848"]
[BlackElo "2246"]
[Annotator "RC"]
[PlyCount "115"]
[EventDate "2024.03.18"]
[EventCountry "TUR"]
[SourceTitle "playchess.com"]
[Source "ChessBase"]
[SourceQuality "1"]
[TimeControl "5400+30"]

1. e4 {[%emt 0:00:04]} e6 {[%emt 0:00:20]} 2. d3 {[%emt 0:00:29]} c5 {[%emt 0:00:08]} 3. g3 {[%emt 0:00:43]} Nc6 {[%emt 0:00:04]} 4. Bg2 {[%emt 0:00:20]} d5 {[%emt 0:00:09]} 5. Nd2 {[%emt 0:02:39]} Nf6 {[%emt 0:00:16]} 6. Ngf3 {[%emt 0:00:19]} Be7 {[%emt 0:01:51]} 7. O-O {[%emt 0:00:27]} b5 {[%emt 0:00:18]} 8. Re1 {[%emt 0:01:44]} O-O {[%emt 0:00:24]} 9. c3 {[%emt 0:02:13]} a5 {[%emt 0:00:37]} 10. e5 {[%emt 0:01:14]} Nd7 {[%emt 0:00:10]} 11. Nf1 {[%emt 0:01:37]} b4 {[%emt 0:00:17]} 12. Bf4 {[%emt 0:01:05]} Kh8 {[%emt 0:00:43]} 13. h4 {[%emt 0:02:07]} a4 {[%emt 0:01:53]} 14. c4 {[%emt 0:04:34]} Nb6 {[%emt 0:01:12]} 15. Ne3 {[%emt 0:01:36]} f6 {[%emt 0:03:54]} 16. exf6 {[%emt 0:08:07]} Bxf6 {[%emt 0:00:22]} 17. cxd5 {[%emt 0:03:23]} exd5 {[%emt 0:01:20]} 18. Ng5 {[%emt 0:02:59]} g6 {[%emt 0:02:54]} 19. Rc1 {[%emt 0:03:00]} Ra5 {[%emt 0:00:11]} 20. Nc4 {[%emt 0:03:55]} dxc4 {[%emt 0:03:42]} 21. Bxc6 {[%emt 0:00:03]} Qxd3 {[%emt 0:02:46]} 22. Bd6 {[%emt 0:14:00]} Rg8 {[%emt 0:00:53]} 23. Bc7 {[%emt 0:09:41]} Bf5 {[%emt 0:07:57]} 24. g4 {[%emt 0:05:28]} Bc8 {[%emt 0:10:43]} 25. Bxb6 {[%emt 0:02:45]} Ra6 {[%emt 0:00:17]} 26. Bd5 {[%emt 0:01:12]} Bxg4 {[%emt 0:05:48]} 27. Qxg4 {[%emt 0:00:47]} Qxd5 {[%emt 0:00:17]} 28. Bc7 {[%emt 0:04:02]} h6 {[%emt 0:01:07]} 29. Rcd1 {[%emt 0:09:30]} Qf5 {[%emt 0:00:20]} 30. Nf7+ {[%emt 0:01:30]} Kh7 {[%emt 0:00:06]} 31. Qxc4 {[%emt 0:01:11]} Rc6 {[%emt 0:01:40]} 32. Bg3 {[%emt 0:00:45]} Rf8 {[%emt 0:04:55]} 33. Nd6 {[%emt 0:00:25]} Qh3 {[%emt 0:00:55]} 34. Ne8 {[%emt 0:01:10]} Qf5 {[%emt 0:00:55]} 35. Rd5 {[%emt 0:01:28]} Qc8 {[%emt 0:01:55]} 36. Nxf6+ {[%emt 0:00:13]} Rcxf6 {[%emt 0:00:05]} 37. Re7+ {[%emt 0:00:18]} R8f7 {[%emt 0:00:07]} 38. Rd8 {[%emt 0:00:52]} Qf5 {[%emt 0:00:12]} 39. Rxf7+ {[%emt 0:00:48]} Rxf7 {[%emt 0:00:05]} 40. Qd5 {[%emt 0:01:29]} Qxd5 {[%emt 0:00:48]} 41. Rxd5 {[%emt 0:00:02]} c4 {[%emt 0:00:58]} 42. Rc5 {[%emt 0:00:09]} b3 {[%emt 0:00:28]} 43. a3 {[%emt 0:01:08]} Re7 {[%emt 0:00:14]} 44. Rxc4 {[%emt 0:00:23]} Re2 {[%emt 0:00:08]} 45. Rxa4 {[%emt 0:00:49]} g5 {[%emt 0:00:06]} 46. h5 {[%emt 0:00:37]} Rxb2 {[%emt 0:00:18]} 47. Rb4 {[%emt 0:00:22]} Rb1+ {[%emt 0:00:08]} 48. Kg2 {[%emt 0:00:09]} Kg7 {[%emt 0:00:02]} 49. Rb6 {[%emt 0:00:16]} g4 {[%emt 0:00:30]} 50. Bf4 {[%emt 0:00:41]} Kh7 {[%emt 0:00:13]} 51. Rxh6+ {[%emt 0:00:07]} Kg7 {[%emt 0:00:04]} 52. Rb6 {[%emt 0:00:08]} Kh7 {[%emt 0:00:05]} 53. Rb7+ {[%emt 0:00:07]} Kg8 {[%emt 0:00:16]} 54. h6 {[%emt 0:00:11]} Re1 {[%emt 0:00:02]} 55. h7+ {[%emt 0:00:20]} Kh8 {[%emt 0:00:01]} 56. Bd2 {[%emt 0:00:13]} Re5 {[%emt 0:00:28]} 57. Bc3 {[%emt 0:00:06]} b2 {[%emt 0:00:04]} 58. Bxe5# {[%emt 0:00:07]} 1-0

[Event "Satranc Arena IM Series-1 2024"]
[Site "Izmir"]
[Date "2024.03.21"]
[Round "7.4"]
[White "Baltag, Iulian"]
[Black "David, Alexandru-Vasile"]
[Result "1/2-1/2"]
[ECO "C47"]
[WhiteElo "2412"]
[BlackElo "2360"]
[Annotator "TA"]
[PlyCount "71"]
[EventDate "2024.03.18"]
[EventCountry "TUR"]
[SourceTitle "playchess.com"]
[Source "ChessBase"]
[SourceQuality "1"]
[TimeControl "5400+30"]

{[%evp 27,71,16,35,27,33,19,16,30,24,20,30,18,30,20,30,18,30,30,25,24,49,43,41,49,47,22,23,22,22,22,22,22,22,22,35,30,30,30,30,0,30,0,30,30,30,0]} 1. e4 {[%emt 0:00:03]} e5 {[%emt 0:00:47]} 2. Nf3 {[%emt 0:00:06]} Nc6 {[%emt 0:00:08]} 3. Nc3 {[%emt 0:02:01]} Nf6 {[%emt 0:03:35]} 4. d4 {[%emt 0:05:00]} exd4 {[%emt 0:01:53]} 5. Nxd4 {[%emt 0:00:08]} Bb4 {[%emt 0:05:02]} 6. Nxc6 {[%emt 0:00:18]} bxc6 {[%emt 0:00:05]} 7. Bd3 {[%emt 0:00:19]} d5 {[%emt 0:00:06]} 8. exd5 {[%emt 0:00:14]} O-O {[%emt 0:00:07]} 9. O-O {[%emt 0:01:47]} cxd5 {[%emt 0:05:32]} 10. Bg5 {[%emt 0:04:12]} c6 {[%emt 0:00:51]} 11. Qf3 {[%emt 0:01:24]} h6 {[%emt 0:05:02]} 12. Bxf6 {[%emt 0:04:21]} Qxf6 {[%emt 0:00:30]} 13. Qxf6 {[%emt 0:01:03]} gxf6 {[%emt 0:01:02]} 14. Ne2 {[%emt 0:04:05]} Bd6 {[%emt 0:00:16]} 15. Ng3 {[%emt 0:00:48]} Re8 {[%emt 0:01:56]} 16. Nf5 {[%emt 0:00:25]} Bxf5 {[%emt 0:00:25]} 17. Bxf5 {[%emt 0:00:04] Die Stellung ist ausgeglichen.} Re5 {[%emt 0:00:36]} 18. Bd3 {[%emt 0:00:08]} Rb8 {[%emt 0:01:00]} 19. b3 {[%emt 0:00:15]} a5 {[%emt 0:00:27]} 20. a4 {[%emt 0:00:07]} Bb4 {[%emt 0:00:45]} 21. Rad1 {[%emt 0:00:23]} Rbe8 {[%emt 0:00:47]} 22. g3 {[%emt 0:00:13]} Kf8 {[%emt 0:01:12]} 23. Kg2 {[%emt 0:00:07]} Re1 {[%emt 0:00:16]} 24. Rfxe1 {[%emt 0:00:25]} Rxe1 {[%emt 0:00:06]} 25. Rxe1 {[%emt 0:00:07]} Bxe1 $14 {[%emt 0:00:06][%mdl 4096] Endspiel. KB-KB} 26. g4 {[%emt 0:00:13]} Ke7 {[%emt 0:00:58]} 27. Kf1 {[%emt 0:00:06]} Bd2 {[%emt 0:00:16]} 28. Ke2 {[%emt 0:00:05]} Bf4 {[%emt 0:00:14]} 29. h3 {[%emt 0:00:04]} c5 {[%emt 0:00:19]} 30. Kf3 {[%emt 0:00:12]} Be5 {[%emt 0:00:15]} 31. Bb5 {[%emt 0:00:06]} Kd6 {[%emt 0:00:22]} 32. Be8 {[%emt 0:00:08]} Ke7 {[%emt 0:00:06]} 33. Bb5 {[%emt 0:00:08]} Kd6 {[%emt 0:00:07]} 34. Be8 {[%emt 0:00:19]} Ke7 {[%emt 0:00:08]} 35. Bc6 {[%emt 0:00:04]} Kd6 {[%emt 0:00:06]} 36. Be8 {[%emt 0:00:06] Gewichteter Fehlerwert: Weiß=0.07 (makellos) /Schwarz=0.05 (makellos) .  Ungenau:       	Weiß=1     	---        OK:         	Weiß=4     	Schwarz=6} 1/2-1/2

[Event "Satranc Arena IM Series-1 2024"]
[Site "Izmir"]
[Date "2024.03.21"]
[Round "7.5"]
[White "Ozsakallioglu, Okan"]
[Black "Yermolinsky, Alex"]
[Result "1/2-1/2"]
[ECO "B10"]
[WhiteElo "2365"]
[BlackElo "2421"]
[Annotator "TA"]
[PlyCount "69"]
[EventDate "2024.03.18"]
[EventCountry "TUR"]
[SourceTitle "playchess.com"]
[Source "ChessBase"]
[SourceQuality "1"]
[TimeControl "5400+30"]

{[%evp 9,69,0,0,-10,7,15,39,27,35,14,28,29,32,32,22,29,16,29,23,23,20,21,54,46,48,39,59,8,6,12,12,0,0,0,0,0,0,0,9,10,15,9,9,14,7,11,9,13,12,10,7,8,8,0,7,8,4,0,13,0,6,-35]} 1. e4 {[%emt 0:00:09]} c6 {[%emt 0:00:10]} 2. Nf3 {[%emt 0:00:05]} d5 {[%emt 0:00:38]} 3. d3 {[%emt 0:00:05]} dxe4 {[%emt 0:01:58]} 4. dxe4 {[%emt 0:02:13]} Qxd1+ {[%emt 0:00:06]} 5. Kxd1 {[%emt 0:00:02]} Nf6 {[%emt 0:00:11]} 6. Nbd2 {[%emt 0:00:14]} Nbd7 {[%emt 0:00:56]} 7. Ne1 {[%emt 0:01:15]} Nc5 {[%emt 0:12:01]} 8. f3 {[%emt 0:01:18] Weiß steht etwas besser.} g6 {[%emt 0:00:06]} 9. Nd3 {[%emt 0:04:11]} Nfd7 {[%emt 0:07:11]} 10. Nc4 {[%emt 0:03:27]} Nxd3 {[%emt 0:02:43]} 11. Bxd3 {[%emt 0:00:06]} Bg7 {[%emt 0:00:08]} 12. Be3 {[%emt 0:01:48] Pariert Nc5.} Ne5 {[%emt 0:07:38]} 13. Nxe5 {[%emt 0:00:47]} Bxe5 {[%emt 0:00:01]} 14. c3 {[%emt 0:00:14]} Be6 {[%emt 0:01:22]} 15. Kc2 {[%emt 0:05:06]} f5 {[%emt 0:03:57]} 16. exf5 {[%emt 0:01:38]} Bxf5 {[%emt 0:07:42]} 17. Rae1 {[%emt 0:05:11]} Bd6 {[%emt 0:02:37]} 18. g4 {[%emt 0:02:43]} (18. h4 $14) 18... Bxd3+ $11 {[%emt 0:00:10] Die Stellung ist ausgeglichen.} 19. Kxd3 {[%emt 0:00:05]} h5 {[%emt 0:01:32]} 20. h3 {[%emt 0:00:08][%cal Bh2h3,Bh3g4,Bg4g5][%mdl 32]} Kd7 {[%emt 0:00:55]} 21. Ke4 {[%emt 0:00:17]} Raf8 {[%emt 0:03:39]} 22. Bg5 {[%emt 0:00:00]} Rh7 {[%emt 0:02:07]} 23. Ref1 {[%emt 0:01:18]} hxg4 {[%emt 0:03:32]} 24. hxg4 {[%emt 0:01:26]} Rfh8 {[%emt 0:00:03]} ({Aber nicht} 24... Rxf3 $2 25. Kxf3 Rg7 26. Rh8 $18) 25. Rxh7 {[%emt 0:00:13]} Rxh7 {[%emt 0:00:04][%mdl 4096] Endspiel. KRB-KRB} 26. Bf4 {[%emt 0:01:32]} Ke6 {[%emt 0:02:33]} 27. Bxd6 {[%emt 0:01:26]} exd6 {[%emt 0:00:18] KR-KR} 28. Kf4 {[%emt 0:01:22]} Kf6 $1 {[%emt 0:04:46]} 29. g5+ {[%emt 0:00:28]} Kf7 {[%emt 0:00:25]} 30. Kg3 {[%emt 0:00:02]} Rh8 {[%emt 0:02:05]} 31. f4 {[%emt 0:00:45]} Re8 {[%emt 0:00:49]} 32. Kf3 {[%emt 0:00:43]} Rh8 {[%emt 0:00:05]} 33. Kg3 {[%emt 0:00:59]} Re8 {[%emt 0:00:11]} 34. Kf3 {[%emt 0:04:01]} Rh8 {[%emt 0:34:51]} 35. Ke4 {[%emt 1:02:43] Gewichteter Fehlerwert: Weiß=0.06 (makellos) /Schwarz=0.05 (makellos) .  Fehler:       	Weiß=1     	---        Ungenau:       	Weiß=1     	Schwarz=1     OK:         	Weiß=10    	Schwarz=11    Bester:       	---       	Schwarz=1     Stark:        	---       	Schwarz=1} 1/2-1/2